fUST/lending_fUST_20240519
["ID","MTS","AMOUNT","RATE_DAILY","PERIOD"]
[327480464,1716104331343,-664.15,0.00022739,2]
[327480465,1716104331365,-166.666666,0.00022944,2]
[327480466,1716104331392,-154.84515485,0.00023,2]
[327480467,1716104331415,-10806.49826553,0.00023,2]
[327480468,1716104331438,-664.15,0.00023013,2]
[327480469,1716104331461,-166.666666,0.00023456,2]
[327480470,1716104331485,-166.666666,0.00023969,2]
[327480471,1716104331509,-750.0,0.00024384,2]
[327480472,1716104331531,-166.666666,0.00024482,2]
[327480473,1716104331554,-500.0,0.00024658,2]
[327480474,1716104331577,-380.0,0.00024658,2]
[327480475,1716104331599,-190.68458154,0.00025,2]
[327480476,1716104331622,-209.80164977,0.00025,2]
[327480477,1716104331645,-1458.51625291,0.00025,2]
[327480478,1716104331667,-321.31649836,0.00025,2]
[327480479,1716104331689,-769.03569215,0.00025,2]
[327480480,1716104331712,-1956.15122121,0.00026,2]
[327480481,1716104331736,-359.20262841,0.00027,2]
[327480482,1716104331759,-806.1548219,0.000275,17]
[327480483,1716104331781,-425.21565905,0.00028,2]
[327480484,1716104331804,-157.990449,0.00028986,2]
[327480485,1716104331827,-285.15489429,0.00029,2]
[327480486,1716104331849,-154.84515485,0.0003,4]
[327480487,1716104331872,-4206.22353841,0.0003,10]
[327480488,1716104331894,-160.0,0.0003,2]
[327480489,1716104331917,-750.0,0.0003031,2]
[327480490,1716104331940,-152.3484225,0.00031754,2]
[327480491,1716104331967,-768.8276806,0.00032,4]
[327480492,1716104331990,-1171.392222,0.00033,4]
[327480493,1716104332013,-467.90063964,0.00034,4]
[327480494,1716104332035,-361.27049566,0.00035,4]
[327480495,1716104332058,-21845.21406564,0.00035,2]
[327480496,1716104332081,-8162.48381246,0.00035,4]
[327480497,1716104332105,-215.47670705,0.00035,4]
[327480498,1716104332128,-5942.74900988,0.00035,4]
[327480499,1716104332151,-154.84515485,0.0003589,2]
[327480500,1716104332174,-750.0,0.00036236,2]
[327480501,1716104332197,-2927.27033653,0.00037,2]
[327480502,1716104332220,-157.990449,0.00039786,2]
[327480503,1716104332247,-999.999999,0.00041,2]
[327480504,1716104332274,-150.83408251,0.00041306,2]
[327480505,1716104332298,-153.0,0.0004198,2]
[327480506,1716104332322,-301.66816502,0.00042,4]
[327480507,1716104332345,-750.0,0.00042163,2]
[327480508,1716104332444,272.4,0.00022191,2]
[327480509,1716104332476,156.68,0.0003,7]
[327480510,1716104333065,566.481557,0.00024384,2]
[327480511,1716104333275,566.481557,0.0003031,2]
[327480512,1716104333519,566.481557,0.00036236,2]
[327480513,1716104333940,566.481557,0.00042163,2]
[327480514,1716104334034,1270.0,0.00020911,2]
[327480515,1716104336242,464.00462424,0.0003,30]
[327480516,1716104343181,5600.0,0.000215,6]
[327480517,1716104348202,500.0,0.00016438,2]
[327480518,1716104348493,500.0,0.00016712,2]
[327480519,1716104349116,500.0,0.00016986,2]
[327480520,1716104349390,500.0,0.0001726,2]
[327480521,1716104349778,500.0,0.00017534,2]
[327480522,1716104350334,500.0,0.00017808,2]
[327480523,1716104350595,500.0,0.00018082,2]
[327480524,1716104350863,500.0,0.00018356,2]
[327480525,1716104351129,500.0,0.0001863,2]
[327480526,1716104351392,500.0,0.00018904,2]
[327480527,1716104351679,500.0,0.00019178,2]
[327480528,1716104572748,154.84515485,9.999e-05,2]
[327480529,1716104653001,154.84515485,9.999e-05,2]
[327480530,1716104696233,227.41912803,9.999e-05,2]
[327480531,1716104696531,154.84515485,9.999e-05,2]
[327480533,1716104714569,155.69659763,9.999e-05,2]
[327480534,1716104810029,371.05192505,9.999e-05,2]
[327480536,1716104836637,285.71224732,0.00015,2]
[327480537,1716104836726,154.84515485,9.999e-05,2]
[327480538,1716104846455,283.61954496,0.000137,2]
[327480539,1716104854620,154.84515485,9.999e-05,2]
[327480540,1716104862282,161.09810604,9.999e-05,2]
[327480541,1716104866213,521.70869695,9.999e-05,2]
[327480542,1716104867681,155.04296986,0.000137,2]
[327480543,1716104888457,1581.58969394,9.999e-05,2]
[327480546,1716104975523,2321.3814009,0.000147,2]
[327480547,1716104977799,22829.2381286,0.00014995,2]
[327480548,1716104978544,155.08797204,9.999e-05,2]
[327480549,1716104986544,1281.1411126,0.00014941,2]
[327480551,1716105017975,250.0,0.00014864,2]
[327480582,1716105032250,-1581.58969394,0.00015088,2]
[327480583,1716105032263,-1437.26416445,0.00015089,2]
[327480584,1716105034288,198.7089768,0.0001484,2]
[327480602,1716105038231,-154.84515485,0.00015087,2]
[327480603,1716105038241,-1028.83338871,0.00015089,2]
[327480604,1716105038251,-371.05192505,0.0001509,2]
[327480605,1716105038260,-283.61954496,0.00015091,2]
[327480606,1716105038268,-539.96214825,0.00015092,2]
[327480607,1716105038340,-9020.4723462,0.00015092,2]
[327480609,1716105038349,-1963.4984237,0.00015093,2]
[327480610,1716105038358,-406.93224573,0.00015206,2]
[327480611,1716105038368,-236.44820243,0.00015206,2]
[327480613,1716105038377,-245.24434868,0.00015206,2]
[327480614,1716105038387,-154.97120917,0.00015206,2]
[327480615,1716105038395,-317.07677732,0.00015206,2]
[327480616,1716105038405,-619.20534,0.0001521,2]
[327480617,1716105038414,-189.91157371,0.000156,2]
[327480618,1716105038423,-155.17145698,0.00015826,2]
[327480620,1716105038432,-245.5381256,0.00015826,2]
[327480622,1716105038441,-186.86508832,0.00015826,2]
[327480623,1716105038450,-154.9635035,0.00015826,2]
[327480625,1716105038459,-154.96602244,0.00015826,2]
[327480627,1716105038467,-154.96899437,0.00015826,2]
[327480629,1716105038476,-158.45914912,0.00015826,2]
[327480631,1716105038486,-154.97628639,0.00015826,2]
[327480633,1716105038495,-521.34662669,0.00015832,2]
[327480635,1716105038504,-521.34662669,0.00015832,2]
[327480637,1716105038512,-521.34662669,0.00015832,2]
[327480639,1716105038522,-521.34662669,0.00015832,2]
[327480641,1716105038530,-309.52592622,0.00015833,2]
[327480643,1716105038539,-797.27966,0.0001584,2]
[327480645,1716105038549,-586.0719446,0.00016,2]
[327480646,1716105038559,-1270.0,0.00016,2]
[327480648,1716105038568,-230.6100049,0.00016437,2]
[327480650,1716105038577,-500.0,0.00016438,2]
[327480652,1716105038586,-500.0,0.00016438,2]
[327480654,1716105038595,-500.0,0.00016438,2]
[327480655,1716105038605,-241.26925977,0.00016438,2]
[327480656,1716105038614,-274.24725433,0.000165,2]
[327480657,1716105038623,-409.60542329,0.00016611,2]
[327480658,1716105038632,-154.84515485,0.00016708,2]
[327480659,1716105038642,-500.0,0.00016711,2]
[327480660,1716105038650,-500.0,0.00016711,2]
[327480661,1716105038660,-503.87380617,0.00016711,2]
[327480662,1716105038670,-500.0,0.00016711,2]
[327480663,1716105038679,-500.0,0.00016711,2]
[327480664,1716105038688,-500.0,0.00016711,2]
[327480665,1716105038696,-500.0,0.00016711,2]
[327480666,1716105038706,-438.04660816,0.00016711,2]
[327480667,1716105038715,-500.0,0.00016711,2]
[327480668,1716105038724,-443.12628376,0.00016711,2]
[327480669,1716105038732,-219.05056537,0.00016711,2]
[327480670,1716105038741,-500.0,0.00016711,2]
[327480671,1716105038750,-500.0,0.00016711,2]
[327480672,1716105038760,-313.14087476,0.00016711,2]
[327480673,1716105038769,-228.17798519,0.00016711,2]
[327480674,1716105038778,-500.0,0.00016711,2]
[327480675,1716105038787,-268.73245225,0.00016711,2]
[327480676,1716105038796,-500.0,0.00016711,2]
[327480677,1716105038805,-500.0,0.00016711,2]
[327480678,1716105038814,-248.55404867,0.00016711,2]
[327480679,1716105038824,-645.00365793,0.00016711,2]
[327480680,1716105038833,-500.0,0.00016711,2]
[327480681,1716105038842,-360.74754853,0.00016711,2]
[327480682,1716105038851,-503.29572593,0.00016711,2]
[327480683,1716105038860,-500.0,0.00016711,2]
[327480684,1716105038869,-500.0,0.00016711,2]
[327480685,1716105038878,-500.0,0.00016711,2]
[327480686,1716105038887,-500.0,0.00016712,2]
[327480687,1716105038899,-500.0,0.00016712,2]
[327480688,1716105038911,-664.15,0.00016984,2]
[327480689,1716105038920,-500.0,0.00016984,2]
[327480690,1716105038929,-500.0,0.00016985,2]
[327480691,1716105038938,-500.0,0.00016985,2]
[327480692,1716105038947,-500.0,0.00016985,2]
[327480693,1716105038956,-500.0,0.00016985,2]
[327480694,1716105038965,-500.0,0.00016985,2]
[327480695,1716105038975,-500.0,0.00016985,2]
[327480696,1716105038985,-500.0,0.00016985,2]
[327480697,1716105038994,-318.13865957,0.00016985,2]
[327480698,1716105039003,-500.0,0.00016985,2]
[327480699,1716105039012,-500.0,0.00016985,2]
[327480700,1716105039022,-500.0,0.00016985,2]
[327480701,1716105039031,-500.0,0.00016985,2]
[327480702,1716105039042,-194.58958557,0.00016985,2]
[327480703,1716105039051,-353.10415503,0.00016986,2]
[327480704,1716105039061,-500.0,0.00016986,2]
[327480705,1716105039071,-754.38432416,0.00017159,2]
[327480706,1716105039080,-500.0,0.00017257,2]
[327480707,1716105039090,-500.0,0.00017257,2]
[327480708,1716105039100,-500.0,0.00017257,2]
[327480709,1716105039109,-500.0,0.00017257,2]
[327480710,1716105039119,-500.0,0.00017258,2]
[327480711,1716105039128,-682.97349062,0.00017258,2]
[327480852,1716105041917,-500.0,0.00017257,2]
[327480853,1716105041927,-67.46650938,0.00017258,2]
[327480855,1716105041936,-500.0,0.00017258,2]
[327480857,1716105041945,-500.0,0.00017258,2]
[327480859,1716105041955,-359.54155477,0.00017258,2]
[327480861,1716105041964,-500.0,0.00017258,2]
[327480862,1716105041973,-500.0,0.00017258,2]
[327480864,1716105041982,-500.0,0.00017258,2]
[327480866,1716105041992,-354.06902005,0.00017258,2]
[327480868,1716105042001,-378.72723327,0.00017258,2]
[327480870,1716105042010,-278.13180887,0.00017258,2]
[327480872,1716105042020,-227.01558299,0.00017258,2]
[327480874,1716105042030,-500.0,0.00017258,2]
[327480876,1716105042039,-664.15,0.00017258,2]
[327480877,1716105042048,-362.27573174,0.00017258,2]
[327480879,1716105042057,-528.85761456,0.00017258,2]
[327480881,1716105042066,-477.28398455,0.00017258,2]
[327480883,1716105042075,-436.82172589,0.00017258,2]
[327480885,1716105042085,-500.0,0.00017258,2]
[327480887,1716105042094,-226.36262918,0.00017258,2]
[327480889,1716105042104,-257.08858868,0.00017258,2]
[327480890,1716105042113,-500.0,0.00017258,2]
[327480892,1716105042123,-500.0,0.00017258,2]
[327480894,1716105042132,-161.43656468,0.00017258,2]
[327480896,1716105042141,-317.45220666,0.00017258,2]
[327480897,1716105042151,-500.0,0.00017259,2]
[327480899,1716105042162,-500.0,0.00017259,2]
[327480901,1716105042171,-500.0,0.00017259,2]
[327480903,1716105042180,-500.0,0.00017259,2]
[327480905,1716105042189,-500.0,0.00017259,2]
[327480907,1716105042199,-500.0,0.00017259,2]
[327480908,1716105042208,-500.0,0.00017259,2]
[327480910,1716105042217,-570.11191803,0.00017259,2]
[327480912,1716105042226,-500.0,0.00017259,2]
[327480914,1716105042236,-500.0,0.00017259,2]
[327480916,1716105042245,-500.0,0.0001726,2]
[327480918,1716105042253,-154.9001949,0.00017487,2]
[327480919,1716105042263,-154.91996077,0.00017487,2]
[327480921,1716105042272,-240.84915166,0.00017487,2]
[327480923,1716105042281,-303.38598553,0.00017487,2]
[327480925,1716105042290,-204.55993706,0.00017487,2]
[327480927,1716105042299,-248.33671085,0.00017487,2]
[327480929,1716105042309,-300.5349251,0.00017487,2]
[327480931,1716105042318,-155.24423699,0.00017487,2]
[327480933,1716105042328,-300.162072,0.00017487,2]
[327480934,1716105042337,-256.01176028,0.00017487,2]
[327480936,1716105042346,-172.94925468,0.00017487,2]
[327480938,1716105042355,-154.87743616,0.00017488,2]
[327480940,1716105042364,-500.0,0.00017531,2]
[327480942,1716105042373,-500.0,0.00017531,2]
[327480944,1716105042383,-500.0,0.00017531,2]
[327480946,1716105042392,-750.44,0.00017532,2]
[327480947,1716105042401,-500.0,0.00017532,2]
[327480949,1716105042414,-500.0,0.00017532,2]
[327480951,1716105042423,-500.0,0.00017532,2]
[327480953,1716105042433,-500.0,0.00017532,2]
[327480955,1716105042443,-500.0,0.00017532,2]
[327480957,1716105042451,-500.0,0.00017532,2]
[327480959,1716105042460,-664.15,0.00017532,2]
[327480961,1716105042469,-500.0,0.00017532,2]
[327480962,1716105042479,-500.0,0.00017532,2]
[327480964,1716105042488,-500.0,0.00017532,2]
[327480966,1716105042498,-500.0,0.00017533,2]
[327480968,1716105042509,-500.0,0.00017533,2]
[327480970,1716105042519,-456.48066931,0.00017533,2]
[327480972,1716105042527,-500.0,0.00017533,2]
[327480974,1716105042536,-500.0,0.00017533,2]
[327480976,1716105042545,-500.0,0.00017533,2]
[327480977,1716105042555,-500.0,0.00017533,2]
[327480979,1716105042564,-500.0,0.00017533,2]
[327480981,1716105042573,-500.0,0.00017533,2]
[327480983,1716105042583,-500.0,0.00017533,2]
[327480985,1716105042592,-500.0,0.00017805,2]
[327480987,1716105042602,-500.0,0.00017805,2]
[327480988,1716105042610,-500.0,0.00017805,2]
[327480990,1716105042620,-750.44,0.00017806,2]
[327480992,1716105042629,-500.0,0.00017806,2]
[327480994,1716105042639,-500.0,0.00017806,2]
[327480996,1716105042648,-500.0,0.00017806,2]
[327480998,1716105042658,-500.0,0.00017806,2]
[327481000,1716105042667,-500.0,0.00017806,2]
[327481002,1716105042676,-500.0,0.00017806,2]
[327481003,1716105042686,-664.15,0.00017806,2]
[327481005,1716105042695,-500.0,0.00017806,2]
[327481007,1716105042704,-500.0,0.00017806,2]
[327481009,1716105042714,-500.0,0.00017806,2]
[327481011,1716105042723,-500.0,0.00017807,2]
[327481013,1716105042733,-500.0,0.00017807,2]
[327481015,1716105042742,-500.0,0.00017807,2]
[327481017,1716105042752,-500.0,0.00017807,2]
[327481019,1716105042761,-500.0,0.00017807,2]
[327481020,1716105042770,-500.0,0.00017807,2]
[327481022,1716105042780,-500.0,0.00017807,2]
[327481024,1716105042790,-10451.02330036,0.00017898,2]
[327481027,1716105042800,-152.3484225,0.0001798,2]
[327481029,1716105042809,-895.99360919,0.00018,2]
[327481033,1716105042819,-8356.66836009,0.00018,7]
[327481036,1716105042828,-3945.28533072,0.00018,2]
[327481039,1716105042838,-500.0,0.00018079,2]
[327481042,1716105042847,-500.0,0.00018079,2]
[327481043,1716105042857,-500.0,0.00018079,2]
[327481045,1716105042867,-750.44,0.0001808,2]
[327481047,1716105042876,-500.0,0.0001808,2]
[327481049,1716105042885,-500.0,0.0001808,2]
[327481051,1716105042895,-500.0,0.0001808,2]
[327481053,1716105042910,-500.0,0.0001808,2]
[327481055,1716105042920,-500.0,0.0001808,2]
[327481057,1716105042929,-500.0,0.0001808,2]
[327481060,1716105042939,-664.15,0.0001808,2]
[327481063,1716105042949,-500.0,0.0001808,2]
[327481065,1716105042958,-500.0,0.0001808,2]
[327481067,1716105042967,-500.0,0.0001808,2]
[327481069,1716105042979,-500.0,0.00018081,2]
[327481071,1716105042989,-500.0,0.00018081,2]
[327481073,1716105042999,-210.62589482,0.00018081,2]
[327481075,1716105043009,-500.0,0.00018353,2]
[327481077,1716105043018,-500.0,0.00018353,2]
[327481079,1716105043029,-750.44,0.00018354,2]
[327481080,1716105043038,-500.0,0.00018354,2]
[327481082,1716105043047,-500.0,0.00018354,2]
[327481084,1716105043057,-222.86573179,0.00018354,2]
[327481086,1716105043066,-500.0,0.00018354,2]
[327481088,1716105043075,-500.0,0.00018354,2]
[327481090,1716105043084,-500.0,0.00018354,2]
[327481092,1716105043093,-664.15,0.00018354,2]
[327481093,1716105043103,-500.0,0.00018354,2]
[327481095,1716105043112,-483.33663518,0.00018354,2]
[327481097,1716105043122,-500.0,0.00018354,2]
[327481099,1716105043131,-500.0,0.00018355,2]
[327481101,1716105043140,-500.0,0.00018355,2]
[327481103,1716105043150,-754.38432414,0.0001853,2]
[327481105,1716105043159,-500.0,0.00018627,2]
[327481107,1716105043168,-750.44,0.00018628,2]
[327481109,1716105043177,-631.45,0.00018628,2]
[327481111,1716105043186,-500.0,0.00018628,2]
[327481112,1716105043195,-664.15,0.00018628,2]
[327481114,1716105043205,-500.0,0.00018628,2]
[327481116,1716105043215,-500.0,0.00018628,2]
[327481118,1716105043224,-500.0,0.00018629,2]
[327481120,1716105043233,-500.0,0.00018629,2]
[327481122,1716105043243,-500.0,0.00018901,2]
[327481124,1716105043252,-750.44,0.00018902,2]
[327481126,1716105043261,-500.0,0.00018902,2]
[327481128,1716105043270,-664.15,0.00018902,2]
[327481129,1716105043279,-500.0,0.00018902,2]
[327481131,1716105043289,-500.0,0.00018902,2]
[327481133,1716105043298,-500.0,0.00018903,2]
[327481135,1716105043323,-500.0,0.00018903,2]
[327481137,1716105043332,-154.84515485,0.00019,2]
[327481139,1716105043342,-154.97546245,0.00019,2]
[327481141,1716105043351,-262.58728536,0.00019164,2]
[327481143,1716105043360,-645.56061658,0.00019175,2]
[327481145,1716105043370,-750.44,0.00019176,2]
[327481147,1716105043379,-500.0,0.00019176,2]
[327481148,1716105043388,-664.15,0.00019176,2]
[327481150,1716105043398,-500.0,0.00019176,2]
[327481152,1716105043409,-500.0,0.00019176,2]
[327481154,1716105043418,-645.7,0.00019177,2]
[327481156,1716105043427,-500.0,0.00019177,2]
[327481158,1716105043436,-155.11895787,0.00019178,2]
[327481160,1716105043445,-500.0,0.00019178,2]
[327481162,1716105043454,-644.65193046,0.00019178,2]
[327481164,1716105043463,-500.0,0.00019178,2]
[327481165,1716105043473,-192.9546768,0.00019178,2]
[327481167,1716105043482,-523.23140458,0.00019178,2]
[327481169,1716105043491,-357.80912277,0.00019178,2]
[327481171,1716105043500,-174.57047947,0.00019178,2]
[327481172,1716105043510,-276.40249209,0.00019178,2]
[327481173,1716105043519,-366.52176022,0.00019178,2]
[327481174,1716105043528,-500.0,0.00019178,2]
[327481175,1716105043537,-476.60740726,0.00019178,2]
[327481176,1716105043546,-601.36958431,0.00019178,2]
[327481177,1716105043555,-500.0,0.00019178,2]
[327481178,1716105043564,-473.78353075,0.00019178,2]
[327481179,1716105043574,-210.13586289,0.00019178,2]
[327481180,1716105043583,-474.41720612,0.00019178,2]
[327481181,1716105043592,-385.20354856,0.00019178,2]
[327481182,1716105043601,-500.0,0.00019178,2]
[327481183,1716105043611,-500.0,0.00019178,2]
[327481184,1716105043621,-500.0,0.00019178,2]
[327481185,1716105043630,-201.94064315,0.00019178,2]
[327481186,1716105043640,-204.26031739,0.00019178,2]
[327481187,1716105043649,-257.72982184,0.00019178,2]
[327481188,1716105043660,-456.67871683,0.00019178,2]
[327481189,1716105043670,-383.50269483,0.00019178,2]
[327481190,1716105043679,-500.0,0.00019178,2]
[327481191,1716105043689,-289.22683745,0.00019178,2]
[327481192,1716105043698,-365.368217,0.00019178,2]
[327481193,1716105043707,-500.0,0.00019178,2]
[327481194,1716105043717,-651.9368774,0.00019178,2]
[327481195,1716105043727,-500.0,0.00019178,2]
[327481196,1716105043736,-500.0,0.00019178,2]
[327481197,1716105043746,-497.10127786,0.00019178,2]
[327481198,1716105043755,-500.0,0.00019178,2]
[327481199,1716105043764,-500.0,0.00019178,2]
[327481200,1716105043773,-242.46926699,0.00019178,2]
[327481201,1716105043782,-500.0,0.00019178,2]
[327481203,1716105043791,-246.25960506,0.00019178,2]
[327481205,1716105043801,-467.95175925,0.00019178,2]
[327481207,1716105043811,-423.40188986,0.00019178,2]
[327481209,1716105043819,-479.04598873,0.00019178,2]
[327481211,1716105043828,-268.0447642,0.00019178,2]
[327481213,1716105043837,-500.0,0.00019178,2]
[327481215,1716105043846,-177.78070525,0.00019178,2]
[327481217,1716105043856,-314.80282278,0.00019178,2]
[327481219,1716105043865,-500.0,0.00019178,2]
[327481221,1716105043874,-278.6337915,0.00019178,2]
[327481223,1716105043883,-161.89314938,0.00019178,2]
[327481225,1716105043893,-310.65640317,0.00019178,2]
[327481227,1716105043907,-500.0,0.00019178,2]
[327481229,1716105043917,-500.0,0.00019178,2]
[327481231,1716105043926,-500.0,0.00019178,2]
[327481233,1716105043936,-455.17284513,0.00019178,2]
[327481234,1716105043947,-407.81496862,0.00019178,2]
[327481237,1716105043956,-581.64508314,0.00019178,2]
[327481238,1716105043966,-448.09985397,0.00019178,2]
[327481240,1716105043977,-422.96516506,0.00019178,2]
[327481242,1716105043987,-181.21839487,0.00019178,2]
[327481244,1716105043996,-267.92860803,0.00019178,2]
[327481246,1716105044005,-606.9180728,0.00019178,2]
[327481248,1716105044015,-649.07548703,0.00019178,2]
[327481250,1716105044025,-161.020628,0.00019178,2]
[327481252,1716105044034,-750.44,0.0001945,2]
[327481254,1716105044043,-500.0,0.0001945,2]
[327481256,1716105044052,-664.15,0.0001945,2]
[327481258,1716105044061,-500.0,0.0001945,2]
[327481260,1716105044071,-500.0,0.0001945,2]
[327481262,1716105044080,-500.0,0.00019451,2]
[327481264,1716105044089,-615.60763988,0.00019452,2]
[327481266,1716105044099,-750.44,0.00019724,2]
[327481268,1716105044108,-500.0,0.00019724,2]
[327481270,1716105044117,-664.15,0.00019724,2]
[327481272,1716105044126,-338.65,0.00019724,2]
[327481274,1716105044136,-500.0,0.00019724,2]
[327481276,1716105044145,-500.0,0.00019725,2]
[327481278,1716105044154,-754.38432414,0.000199,2]
[327481280,1716105044163,-750.44,0.00019998,2]
[327481282,1716105044172,-500.0,0.00019998,2]
[327481284,1716105044182,-664.15,0.00019998,2]
[327481286,1716105044191,-500.0,0.00019998,2]
[327481288,1716105044200,-500.0,0.00019999,2]
[327481290,1716105044209,-5217.33879494,0.0002,3]
[327481292,1716105044219,-946.16678493,0.0002,2]
[327481660,1716105073232,410.50546259,9.999e-05,2]
[327481661,1716105112173,154.84515485,9.999e-05,2]
[327481664,1716105494900,154.84515485,9.999e-05,2]
[327481665,1716105500716,410.50546259,9.999e-05,2]
[327481666,1716105523534,283.61954496,0.000137,2]
[327481667,1716105561712,154.84515485,9.999e-05,2]
[327481669,1716105639644,371.05192505,9.999e-05,2]
[327481673,1716105885734,154.84515485,9.999e-05,2]
[327481674,1716105953083,283.61954496,0.000137,2]
[327481675,1716105985263,154.84515485,9.999e-05,2]
[327481676,1716106065202,371.05192505,9.999e-05,2]
[327481677,1716106114135,1500.0,0.00015,2]
[327481710,1716106232420,-154.84515485,0.00015459,2]
[327481711,1716106232430,-2466.09755316,0.00015459,2]
[327481712,1716106232439,-5026.06607983,0.0001546,2]
[327481726,1716106238421,-874.02268305,0.0001546,2]
[327481824,1716106243663,-3660.34573157,0.0001546,2]
[327481825,1716106243674,-330.9155996,0.00015462,2]
[327481826,1716106243683,-376.33158956,0.00015465,2]
[327481827,1716106243693,-155.12307376,0.00015467,2]
[327481828,1716106243702,-284.02227454,0.00015469,2]
[327481830,1716106243711,-1384.50545097,0.00015474,2]
[327482128,1716106246515,-154.84515485,0.00015459,2]
[327482130,1716106246525,-7181.94617239,0.00015474,2]
[327482131,1716106246537,-9258.28562739,0.00015474,2]
[327482179,1716106483022,158.53381021,9.999e-05,2]
[327482192,1716106905086,4188.5751781,0.00014349,2]
[327482193,1716107167603,154.95387525,0.00014349,2]
[327482194,1716107181552,236.19327012,0.00014349,2]
[327482195,1716107190430,16139.66154075,0.00014349,2]
[327482196,1716107207215,19241.62944046,0.00014349,2]
[327482197,1716107230382,4831.38929771,0.00014349,2]
[327482198,1716107233065,19241.62944046,0.00014349,2]
[327482199,1716107249000,19241.62944046,0.00014349,2]
[327482200,1716107283918,19252.21879879,0.00014349,2]
[327482201,1716107301007,6951.81174834,0.00014349,2]
[327482233,1716107432625,-161.00975163,0.00010859,2]
[327482235,1716107432635,-2466.09755316,0.00010956,2]
[327482238,1716107432644,-9560.43449445,0.00010957,2]
[327482240,1716107432657,-3333.9613986,0.00014349,2]
[327482242,1716107432667,-155.25323759,0.00014349,2]
[327482244,1716107432676,-16134.46583369,0.00014349,2]
[327482246,1716107432685,-309.42755979,0.00015075,2]
[327482248,1716107432695,-417.13177639,0.00015213,2]
[327482250,1716107432705,-4222.60180257,0.00015227,2]
[327482252,1716107432714,-528.36551602,0.00015344,2]
[327482254,1716107432724,-158.47759235,0.00015351,2]
[327482256,1716107432734,-7908.00411045,0.00015353,2]
[327482258,1716107432744,-330.96158487,0.00015353,2]
[327482260,1716107432753,-194.81877827,0.00015353,2]
[327482262,1716107432763,-261.10136921,0.00015353,2]
[327482264,1716107432773,-452.52831116,0.00015354,2]
[327482265,1716107432783,-909.64823199,0.00015354,2]
[327482267,1716107432792,-157.93380693,0.00015354,2]
[327482268,1716107432802,-1152.02842662,0.00015354,2]
[327482269,1716107432813,-1011.63785767,0.00015359,2]
[327482270,1716107432822,-230.05096188,0.00015472,2]
[327482271,1716107432832,-410.83671046,0.0001597,2]
[327482272,1716107432841,-233.21043874,0.00015971,2]
[327482273,1716107432850,-586.0719446,0.00016,2]
[327482274,1716107432860,-1270.0,0.00016,2]
[327482275,1716107432869,-274.24725433,0.000165,2]
[327482276,1716107432878,-1058.59022026,0.000165,2]
[327482277,1716107432888,-156.58956728,0.00017154,2]
[327482278,1716107432897,-500.0,0.00017251,2]
[327482279,1716107432906,-500.0,0.00017251,2]
[327482280,1716107432916,-593.2,0.00017251,2]
[327482281,1716107432925,-500.0,0.00017251,2]
[327482282,1716107432934,-539.61714816,0.00017251,2]
[327482283,1716107432944,-500.0,0.00017251,2]
[327482284,1716107432954,-500.0,0.00017251,2]
[327482285,1716107432963,-500.0,0.00017251,2]
[327482286,1716107432972,-500.0,0.00017251,2]
[327482287,1716107432982,-500.0,0.00017252,2]
[327482288,1716107432992,-216.6,0.00017252,2]
[327482289,1716107433001,-500.0,0.00017252,2]
[327482290,1716107433011,-245.21863889,0.00017252,2]
[327482291,1716107433021,-500.0,0.00017252,2]
[327482292,1716107433030,-500.0,0.00017252,2]
[327482293,1716107433040,-500.0,0.00017252,2]